[Event "Titled Tuesday Blitz February 28 Early 2023"]
[White "Valle Maytin, Luis Enrique"]
[Black "Kriti Mayur Patel"]
[WhiteFideId "3503666"]
[BlackFideId "35061780"]
[WhiteElo "2225"]
[BlackElo "1306"]
[Result "1-0"]
[Round "06"]
[TimeControl "180+2"]
[Date "2023.02.28"]
[WhiteClock "0:00:15"]
[BlackClock "0:00:15"]

1. e4 {[%clk 0:03:00]}  e5 {[%clk 0:02:59]} 2. Nf3 {[%clk 0:02:59]}  Nc6 {[%clk 0:02:59]} 3. Bb5 {[%clk 0:02:58]}  a6 {[%clk 0:02:58]} 4. Ba4 {[%clk 0:02:59]}  b5 {[%clk 0:02:56]} 5. Bb3 {[%clk 0:02:59]}  Nf6 {[%clk 0:02:56]} 6. O-O {[%clk 0:02:59]}  Bc5 {[%clk 0:02:57]} 7. c3 {[%clk 0:02:58]}  O-O {[%clk 0:02:56]} 8. Re1 {[%clk 0:02:57]}  d6 {[%clk 0:02:55]} 9. h3 {[%clk 0:02:57]}  h6 {[%clk 0:02:54]} 10. a4 {[%clk 0:02:56]}  Rb8 {[%clk 0:02:53]} 11. d4 {[%clk 0:02:53]}  Bb6 {[%clk 0:02:53]} 12. Be3 {[%clk 0:02:22]}  Bb7 {[%clk 0:02:42]} 13. Nbd2 {[%clk 0:02:18]}  exd4 {[%clk 0:02:31]} 14. cxd4 {[%clk 0:02:11]}  Nb4 {[%clk 0:02:31]} 15. d5 {[%clk 0:01:52]}  Nd3 {[%clk 0:02:21]} 16. Re2 {[%clk 0:01:35]}  Nxb2 {[%clk 0:02:20]} 17. Qc2 {[%clk 0:01:33]}  Nxa4 {[%clk 0:02:20]} 18. Nd4 {[%clk 0:01:17]}  Nc5 {[%clk 0:02:09]} 19. Nf5 {[%clk 0:01:08]}  Re8 {[%clk 0:01:58]} 20. Bd4 {[%clk 0:00:54]}  Nxb3 {[%clk 0:01:40]} 21. Qxb3 {[%clk 0:00:55]}  Bxd4 {[%clk 0:01:31]} 22. Nxd4 {[%clk 0:00:54]}  Nxd5 {[%clk 0:01:24]} 23. exd5 {[%clk 0:00:44]}  Qf6 {[%clk 0:01:17]} 24. Rxe8+ {[%clk 0:00:37]}  Rxe8 {[%clk 0:01:18]} 25. N2f3 {[%clk 0:00:36]}  Re4 {[%clk 0:01:11]} 26. Rd1 {[%clk 0:00:35]}  Bc8 {[%clk 0:00:54]} 27. Qd3 {[%clk 0:00:21]}  Re8 {[%clk 0:00:38]} 28. Nc6 {[%clk 0:00:20]}  Bf5 {[%clk 0:00:35]} 29. Qd4 {[%clk 0:00:19]}  Qg6 {[%clk 0:00:30]} 30. Nh4 {[%clk 0:00:18]}  Qg5 {[%clk 0:00:30]} 31. Nxf5 {[%clk 0:00:18]}  Qxf5 {[%clk 0:00:31]} 32. Qd2 {[%clk 0:00:15]}  Qf6 {[%clk 0:00:29]} 33. Re1 {[%clk 0:00:15]}  Rxe1+ {[%clk 0:00:13]} 34. Qxe1 {[%clk 0:00:16]}  Kh7 {[%clk 0:00:08]} 35. Qe4+ {[%clk 0:00:15]}  g6 {[%clk 0:00:06]} 36. Qe8 {[%clk 0:00:12]}  Qh8 {[%clk 0:00:03]} 37. Qxf7+ {[%clk 0:00:12]}  Qg7 {[%clk 0:00:04]} 38. Qxg7+ {[%clk 0:00:07]}  Kxg7 {[%clk 0:00:05]} 39. Kf1 {[%clk 0:00:08]}  Kf6 {[%clk 0:00:05]} 40. Ke2 {[%clk 0:00:09]}  Kf5 {[%clk 0:00:05]} 41. Ke3 {[%clk 0:00:10]}  Kf6 {[%clk 0:00:04]} 42. f4 {[%clk 0:00:09]}  Kf5 {[%clk 0:00:05]} 43. g4+ {[%clk 0:00:10]}  Kf6 {[%clk 0:00:05]} 44. Ke4 {[%clk 0:00:11]}  h5 {[%clk 0:00:06]} 45. g5+ {[%clk 0:00:10]}  Kf7 {[%clk 0:00:05]} 46. h4 {[%clk 0:00:10]}  Ke8 {[%clk 0:00:05]} 47. Kd4 {[%clk 0:00:10]}  Kd7 {[%clk 0:00:06]} 48. Kc3 {[%clk 0:00:11]}  Ke8 {[%clk 0:00:06]} 49. Kb4 {[%clk 0:00:11]}  Kf7 {[%clk 0:00:07]} 50. Ka5 {[%clk 0:00:11]}  Ke8 {[%clk 0:00:08]} 51. Kxa6 {[%clk 0:00:11]}  Kd7 {[%clk 0:00:09]} 52. Kxb5 {[%clk 0:00:11]}  Kc8 {[%clk 0:00:10]} 53. Ka6 {[%clk 0:00:11]}  Kd7 {[%clk 0:00:10]} 54. Kb7 {[%clk 0:00:12]}  Ke8 {[%clk 0:00:09]} 55. Kxc7 {[%clk 0:00:13]}  Kf7 {[%clk 0:00:09]} 56. Kxd6 {[%clk 0:00:14]}  Kg7 {[%clk 0:00:10]} 57. Ne5 {[%clk 0:00:14]}  Kh7 {[%clk 0:00:11]} 58. Ke6 {[%clk 0:00:15]}  Kh8 {[%clk 0:00:11]} 59. d6 {[%clk 0:00:15]}  Kh7 {[%clk 0:00:12]} 60. d7 {[%clk 0:00:15]}  Kg7 {[%clk 0:00:13]} 61. d8=Q {[%clk 0:00:14]}  Kh7 {[%clk 0:00:14]} 62. Qe7+ {[%clk 0:00:15]}  Kh8 {[%clk 0:00:14]} 63. Nxg6+ {[%clk 0:00:14]}  Kg8 {[%clk 0:00:15]} 64. Qf7# {[%clk 0:00:15]} 1-0


[Site "https://www.chess.com"]

[Event "Titled Tuesday Blitz February 28 Early 2023"]
[White "Kalaiyalahan, Akshaya"]
[Black "Fernandez Garcia, Gumersindo"]
[WhiteFideId "422894"]
[BlackFideId "24516740"]
[WhiteElo "2043"]
[BlackElo "2093"]
[Result "1/2-1/2"]
[Round "06"]
[TimeControl "180+2"]
[Date "2023.02.28"]
[WhiteClock "0:00:05"]
[BlackClock "0:00:27"]

1. d4 {[%clk 0:02:48]}  Nf6 {[%clk 0:02:59]} 2. c4 {[%clk 0:02:45]}  e6 {[%clk 0:02:59]} 3. g3 {[%clk 0:02:44]}  d5 {[%clk 0:02:58]} 4. Bg2 {[%clk 0:02:43]}  Be7 {[%clk 0:02:58]} 5. Nf3 {[%clk 0:02:42]}  O-O {[%clk 0:02:57]} 6. O-O {[%clk 0:02:43]}  dxc4 {[%clk 0:02:50]} 7. Ne5 {[%clk 0:02:39]}  Nc6 {[%clk 0:02:48]} 8. Bxc6 {[%clk 0:02:37]}  bxc6 {[%clk 0:02:49]} 9. Nxc6 {[%clk 0:02:34]}  Qe8 {[%clk 0:02:50]} 10. Nxe7+ {[%clk 0:02:30]}  Qxe7 {[%clk 0:02:50]} 11. Bg5 {[%clk 0:02:29]}  h6 {[%clk 0:02:48]} 12. Bd2 {[%clk 0:02:18]}  c5 {[%clk 0:02:45]} 13. dxc5 {[%clk 0:02:15]}  Qxc5 {[%clk 0:02:41]} 14. Na3 {[%clk 0:02:09]}  Bb7 {[%clk 0:02:35]} 15. Be3 {[%clk 0:02:09]}  Qc6 {[%clk 0:02:26]} 16. f3 {[%clk 0:02:09]}  Rfd8 {[%clk 0:02:25]} 17. Qc2 {[%clk 0:02:08]}  Nd5 {[%clk 0:02:20]} 18. Bf2 {[%clk 0:02:05]}  c3 {[%clk 0:02:11]} 19. e4 {[%clk 0:01:34]}  cxb2 {[%clk 0:02:00]} 20. Qxb2 {[%clk 0:01:33]}  Nb6 {[%clk 0:01:54]} 21. Rac1 {[%clk 0:01:31]}  Qa4 {[%clk 0:01:53]} 22. Rc7 {[%clk 0:01:18]}  Ba6 {[%clk 0:01:42]} 23. Re1 {[%clk 0:01:04]}  Rdc8 {[%clk 0:01:38]} 24. Rxc8+ {[%clk 0:00:58]}  Rxc8 {[%clk 0:01:37]} 25. Qb3 {[%clk 0:00:45]}  Qxb3 {[%clk 0:01:34]} 26. axb3 {[%clk 0:00:44]}  Rc3 {[%clk 0:01:32]} 27. Nc4 {[%clk 0:00:33]}  Bxc4 {[%clk 0:01:24]} 28. bxc4 {[%clk 0:00:29]}  Rxc4 {[%clk 0:01:25]} 29. Ra1 {[%clk 0:00:27]}  Rc7 {[%clk 0:01:24]} 30. Ra6 {[%clk 0:00:26]}  Rb7 {[%clk 0:01:23]} 31. Kf1 {[%clk 0:00:23]}  Kf8 {[%clk 0:01:24]} 32. Bc5+ {[%clk 0:00:22]}  Ke8 {[%clk 0:01:23]} 33. Bd4 {[%clk 0:00:21]}  g6 {[%clk 0:01:20]} 34. Ke2 {[%clk 0:00:19]}  Kd7 {[%clk 0:01:20]} 35. f4 {[%clk 0:00:16]}  Kc6 {[%clk 0:01:19]} 36. Kf3 {[%clk 0:00:16]}  Kb5 {[%clk 0:01:18]} 37. Ra1 {[%clk 0:00:16]}  a5 {[%clk 0:01:14]} 38. h4 {[%clk 0:00:10]}  h5 {[%clk 0:01:13]} 39. g4 {[%clk 0:00:10]}  hxg4+ {[%clk 0:01:13]} 40. Kxg4 {[%clk 0:00:10]}  a4 {[%clk 0:01:05]} 41. Rb1+ {[%clk 0:00:10]}  Ka6 {[%clk 0:01:05]} 42. Ra1 {[%clk 0:00:10]}  Ka5 {[%clk 0:01:00]} 43. f5 {[%clk 0:00:10]}  exf5+ {[%clk 0:00:59]} 44. exf5 {[%clk 0:00:10]}  Nd5 {[%clk 0:00:54]} 45. fxg6 {[%clk 0:00:09]}  fxg6 {[%clk 0:00:55]} 46. Kg5 {[%clk 0:00:09]}  Rb4 {[%clk 0:00:51]} 47. Bg7 {[%clk 0:00:09]}  Ne7 {[%clk 0:00:43]} 48. Bf6 {[%clk 0:00:08]}  Nd5 {[%clk 0:00:42]} 49. Bd8+ {[%clk 0:00:06]}  Kb5 {[%clk 0:00:42]} 50. Rd1 {[%clk 0:00:07]}  Kc4 {[%clk 0:00:39]} 51. Kxg6 {[%clk 0:00:05]}  Nc3 {[%clk 0:00:38]} 52. Rf1 {[%clk 0:00:04]}  Rb8 {[%clk 0:00:38]} 53. Bf6 {[%clk 0:00:04]}  a3 {[%clk 0:00:38]} 54. Rc1 {[%clk 0:00:04]}  Rb3 {[%clk 0:00:38]} 55. h5 {[%clk 0:00:04]}  a2 {[%clk 0:00:36]} 56. Bxc3 {[%clk 0:00:04]}  Rxc3 {[%clk 0:00:36]} 57. Ra1 {[%clk 0:00:04]}  Rg3+ {[%clk 0:00:33]} 58. Kf7 {[%clk 0:00:04]}  Kb3 {[%clk 0:00:28]} 59. h6 {[%clk 0:00:05]}  Rf3+ {[%clk 0:00:28]} 60. Kg7 {[%clk 0:00:05]}  Rg3+ {[%clk 0:00:29]} 61. Kf7 {[%clk 0:00:05]}  Rh3 {[%clk 0:00:29]} 62. Kg7 {[%clk 0:00:05]}  Rg3+ {[%clk 0:00:27]} 63. Kf7 {[%clk 0:00:05]} 1/2-1/2


[Site "https://www.chess.com"]

[Event "Titled Tuesday Blitz February 28 Early 2023"]
[White "Qashashvili, Alexandre"]
[Black "Nan, M K Khine Hlyan"]
[WhiteFideId "13600842"]
[BlackFideId "13002899"]
[WhiteElo "2405"]
[BlackElo "1943"]
[Result "0-1"]
[Round "06"]
[TimeControl "180+2"]
[Date "2023.02.28"]
[WhiteClock "0:01:28"]
[BlackClock "0:00:48"]

1. e4 {[%clk 0:03:00]}  d6 {[%clk 0:02:59]} 2. Nc3 {[%clk 0:02:47]}  g6 {[%clk 0:02:58]} 3. Nf3 {[%clk 0:02:45]}  Bg7 {[%clk 0:02:52]} 4. d3 {[%clk 0:02:43]}  Nf6 {[%clk 0:02:50]} 5. Be3 {[%clk 0:02:43]}  c5 {[%clk 0:02:49]} 6. Qd2 {[%clk 0:02:42]}  a6 {[%clk 0:02:48]} 7. Bh6 {[%clk 0:02:42]}  Bxh6 {[%clk 0:02:42]} 8. Qxh6 {[%clk 0:02:41]}  b5 {[%clk 0:02:41]} 9. Ng5 {[%clk 0:02:40]}  b4 {[%clk 0:02:26]} 10. Nd5 {[%clk 0:02:39]}  Nxd5 {[%clk 0:02:19]} 11. exd5 {[%clk 0:02:40]}  Bb7 {[%clk 0:02:10]} 12. Qg7 {[%clk 0:02:38]}  Kd7 {[%clk 0:01:52]} 13. Qxf7 {[%clk 0:02:30]}  Rf8 {[%clk 0:01:38]} 14. Ne6 {[%clk 0:02:29]}  Rxf7 {[%clk 0:01:35]} 15. Nxd8 {[%clk 0:02:23]}  Kxd8 {[%clk 0:01:34]} 16. Be2 {[%clk 0:02:14]}  Bxd5 {[%clk 0:01:33]} 17. O-O {[%clk 0:02:15]}  Nd7 {[%clk 0:01:32]} 18. c4 {[%clk 0:02:11]}  Be6 {[%clk 0:01:29]} 19. Bf3 {[%clk 0:02:09]}  Rb8 {[%clk 0:01:27]} 20. a3 {[%clk 0:02:09]}  Ne5 {[%clk 0:01:21]} 21. Be4 {[%clk 0:02:08]}  Bf5 {[%clk 0:01:19]} 22. axb4 {[%clk 0:02:06]}  Bxe4 {[%clk 0:01:14]} 23. dxe4 {[%clk 0:02:07]}  Rxb4 {[%clk 0:01:12]} 24. Rxa6 {[%clk 0:02:05]}  Rxb2 {[%clk 0:01:08]} 25. f3 {[%clk 0:02:02]}  Nxc4 {[%clk 0:01:07]} 26. Rfa1 {[%clk 0:01:59]}  Ne3 {[%clk 0:01:01]} 27. Ra7 {[%clk 0:01:55]}  Rxg2+ {[%clk 0:00:57]} 28. Kh1 {[%clk 0:01:55]}  Rxf3 {[%clk 0:00:56]} 29. Rb1 {[%clk 0:01:52]}  Ke8 {[%clk 0:00:53]} 30. Re1 {[%clk 0:01:38]}  Rgf2 {[%clk 0:00:47]} 31. e5 {[%clk 0:01:29]}  Rf1+ {[%clk 0:00:47]} 32. Rxf1 {[%clk 0:01:28]}  Rxf1# {[%clk 0:00:48]} 0-1


[Site "https://www.chess.com"]

[Event "Titled Tuesday Blitz February 28 Early 2023"]
[White "Curtis, John"]
[Black "Larina, Maria"]
[WhiteFideId "3200256"]
[BlackFideId "24113182"]
[WhiteElo "2203"]
[BlackElo "1848"]
[Result "1-0"]
[Round "06"]
[TimeControl "180+2"]
[Date "2023.02.28"]
[WhiteClock "0:00:49"]
[BlackClock "0:00:01"]

1. d4 {[%clk 0:03:00]}  f5 {[%clk 0:02:58]} 2. Nf3 {[%clk 0:02:58]}  Nf6 {[%clk 0:02:58]} 3. g3 {[%clk 0:02:58]}  g6 {[%clk 0:02:59]} 4. Bg2 {[%clk 0:02:58]}  Bg7 {[%clk 0:02:59]} 5. c4 {[%clk 0:02:59]}  d6 {[%clk 0:02:59]} 6. Nc3 {[%clk 0:02:55]}  O-O {[%clk 0:02:59]} 7. d5 {[%clk 0:02:52]}  c6 {[%clk 0:02:44]} 8. Nd4 {[%clk 0:02:48]}  Bd7 {[%clk 0:02:43]} 9. O-O {[%clk 0:02:41]}  Qe8 {[%clk 0:02:41]} 10. e4 {[%clk 0:02:37]}  fxe4 {[%clk 0:02:40]} 11. Nxe4 {[%clk 0:02:37]}  Nxe4 {[%clk 0:02:41]} 12. Bxe4 {[%clk 0:02:36]}  e5 {[%clk 0:02:32]} 13. dxe6 {[%clk 0:02:28]}  Bxe6 {[%clk 0:02:31]} 14. Nxe6 {[%clk 0:02:25]}  Qxe6 {[%clk 0:02:31]} 15. Bg2 {[%clk 0:02:04]}  Na6 {[%clk 0:02:24]} 16. Re1 {[%clk 0:01:47]}  Qxc4 {[%clk 0:02:12]} 17. Qxd6 {[%clk 0:01:46]}  Qc5 {[%clk 0:01:48]} 18. Qe6+ {[%clk 0:01:33]}  Kh8 {[%clk 0:01:46]} 19. Be3 {[%clk 0:01:33]}  Qb5 {[%clk 0:01:25]} 20. a4 {[%clk 0:01:32]}  Qxb2 {[%clk 0:01:17]} 21. Rab1 {[%clk 0:01:32]}  Qc3 {[%clk 0:01:11]} 22. Rec1 {[%clk 0:01:32]}  Qa5 {[%clk 0:00:42]} 23. Rxb7 {[%clk 0:01:28]}  Rae8 {[%clk 0:00:20]} 24. Qd7 {[%clk 0:01:17]}  Rg8 {[%clk 0:00:20]} 25. Bd4 {[%clk 0:01:12]}  Re1+ {[%clk 0:00:19]} 26. Bf1 {[%clk 0:01:07]}  Bxd4 {[%clk 0:00:12]} 27. Qxd4+ {[%clk 0:01:05]}  Qe5 {[%clk 0:00:09]} 28. Qxa7 {[%clk 0:00:57]}  Rg7 {[%clk 0:00:04]} 29. Rxe1 {[%clk 0:00:50]}  Qxe1 {[%clk 0:00:01]} 30. Rxg7 {[%clk 0:00:49]} 1-0


[Site "https://www.chess.com"]

[Event "Titled Tuesday Blitz February 28 Early 2023"]
[White "Tagliati, Eleonore"]
[Black "Gritsenko, Nikolai"]
[WhiteFideId "45172234"]
[BlackFideId "14112493"]
[WhiteElo "2223"]
[BlackElo "2389"]
[Result "0-1"]
[Round "06"]
[TimeControl "180+2"]
[Date "2023.02.28"]
[WhiteClock "0:00:17"]
[BlackClock "0:00:26"]

1. e4 {[%clk 0:03:00]}  d5 {[%clk 0:02:58]} 2. exd5 {[%clk 0:02:59]}  Nf6 {[%clk 0:02:58]} 3. Nf3 {[%clk 0:02:56]}  Nxd5 {[%clk 0:02:57]} 4. Be2 {[%clk 0:02:56]}  Nf4 {[%clk 0:02:53]} 5. O-O {[%clk 0:02:56]}  Nxe2+ {[%clk 0:02:51]} 6. Qxe2 {[%clk 0:02:57]}  Nc6 {[%clk 0:02:50]} 7. c3 {[%clk 0:02:53]}  e6 {[%clk 0:02:46]} 8. d4 {[%clk 0:02:53]}  Be7 {[%clk 0:02:46]} 9. Bf4 {[%clk 0:02:50]}  O-O {[%clk 0:02:45]} 10. Nbd2 {[%clk 0:02:48]}  b6 {[%clk 0:02:41]} 11. Ne4 {[%clk 0:02:43]}  Bb7 {[%clk 0:02:35]} 12. Rfe1 {[%clk 0:02:32]}  Re8 {[%clk 0:02:12]} 13. Rad1 {[%clk 0:02:24]}  Rc8 {[%clk 0:02:09]} 14. a3 {[%clk 0:02:20]}  h6 {[%clk 0:02:04]} 15. c4 {[%clk 0:02:19]}  Bf8 {[%clk 0:01:54]} 16. Nc3 {[%clk 0:02:05]}  Qf6 {[%clk 0:01:45]} 17. Bg3 {[%clk 0:02:02]}  Ne7 {[%clk 0:01:30]} 18. Ne5 {[%clk 0:01:53]}  Nf5 {[%clk 0:01:25]} 19. Ne4 {[%clk 0:01:36]}  Bxe4 {[%clk 0:01:20]} 20. Qxe4 {[%clk 0:01:36]}  c5 {[%clk 0:01:18]} 21. d5 {[%clk 0:01:32]}  exd5 {[%clk 0:01:15]} 22. Rxd5 {[%clk 0:01:33]}  Nxg3 {[%clk 0:01:09]} 23. hxg3 {[%clk 0:01:27]}  Re6 {[%clk 0:01:02]} 24. f4 {[%clk 0:01:24]}  Rce8 {[%clk 0:01:01]} 25. Qd3 {[%clk 0:01:18]}  Bd6 {[%clk 0:00:58]} 26. Qc3 {[%clk 0:01:03]}  Bxe5 {[%clk 0:00:56]} 27. Rexe5 {[%clk 0:00:59]}  Rxe5 {[%clk 0:00:56]} 28. Rxe5 {[%clk 0:00:46]}  Rxe5 {[%clk 0:00:55]} 29. fxe5 {[%clk 0:00:47]}  Qf5 {[%clk 0:00:54]} 30. Qe3 {[%clk 0:00:43]}  g5 {[%clk 0:00:50]} 31. b4 {[%clk 0:00:39]}  cxb4 {[%clk 0:00:46]} 32. axb4 {[%clk 0:00:40]}  Qb1+ {[%clk 0:00:45]} 33. Kh2 {[%clk 0:00:39]}  Qxb4 {[%clk 0:00:45]} 34. e6 {[%clk 0:00:40]}  Qe7 {[%clk 0:00:44]} 35. exf7+ {[%clk 0:00:39]}  Kxf7 {[%clk 0:00:44]} 36. Qf3+ {[%clk 0:00:39]}  Kg7 {[%clk 0:00:43]} 37. Qd5 {[%clk 0:00:37]}  a5 {[%clk 0:00:38]} 38. Qb5 {[%clk 0:00:36]}  Qc7 {[%clk 0:00:37]} 39. Qa4 {[%clk 0:00:33]}  h5 {[%clk 0:00:35]} 40. Qe8 {[%clk 0:00:30]}  h4 {[%clk 0:00:33]} 41. Kh1 {[%clk 0:00:20]}  hxg3 {[%clk 0:00:32]} 42. Qe6 {[%clk 0:00:19]}  Qf4 {[%clk 0:00:29]} 43. Qe7+ {[%clk 0:00:19]}  Kg6 {[%clk 0:00:29]} 44. Qe8+ {[%clk 0:00:18]}  Qf7 {[%clk 0:00:28]} 45. Qe4+ {[%clk 0:00:19]}  Kh6 {[%clk 0:00:28]} 46. Qc6+ {[%clk 0:00:17]}  Kh5 {[%clk 0:00:26]} 0-1


[Site "https://www.chess.com"]

[Event "Titled Tuesday Blitz February 28 Early 2023"]
[White "Nakamura, Hikaru"]
[Black "Carlsen, Magnus"]
[WhiteFideId "2016192"]
[BlackFideId "1503014"]
[WhiteElo "2879"]
[BlackElo "2852"]
[Result "1/2-1/2"]
[Round "07"]
[TimeControl "180+2"]
[Date "2023.02.28"]
[WhiteClock "0:01:41"]
[BlackClock "0:02:01"]

1. a3 {[%clk 0:03:00]}  d5 {[%clk 0:02:57]} 2. Nf3 {[%clk 0:02:56]}  a6 {[%clk 0:02:58]} 3. d4 {[%clk 0:02:48]}  Nf6 {[%clk 0:02:54]} 4. Bf4 {[%clk 0:02:48]}  e6 {[%clk 0:02:48]} 5. e3 {[%clk 0:02:47]}  Bd6 {[%clk 0:02:48]} 6. Nbd2 {[%clk 0:02:47]}  c5 {[%clk 0:02:42]} 7. Bxd6 {[%clk 0:02:42]}  Qxd6 {[%clk 0:02:42]} 8. dxc5 {[%clk 0:02:43]}  Qxc5 {[%clk 0:02:43]} 9. c4 {[%clk 0:02:43]}  O-O {[%clk 0:02:42]} 10. Rc1 {[%clk 0:02:42]}  Rd8 {[%clk 0:02:38]} 11. Be2 {[%clk 0:02:30]}  dxc4 {[%clk 0:02:35]} 12. Rxc4 {[%clk 0:02:30]}  Qe7 {[%clk 0:02:36]} 13. O-O {[%clk 0:02:20]}  b5 {[%clk 0:02:30]} 14. Rc2 {[%clk 0:02:16]}  Bb7 {[%clk 0:02:29]} 15. Qc1 {[%clk 0:02:02]}  Nbd7 {[%clk 0:02:22]} 16. Nd4 {[%clk 0:02:02]}  Rac8 {[%clk 0:02:04]} 17. Bf3 {[%clk 0:01:49]}  Rxc2 {[%clk 0:02:02]} 18. Qxc2 {[%clk 0:01:50]}  Rc8 {[%clk 0:02:02]} 19. Qb1 {[%clk 0:01:50]}  Ne5 {[%clk 0:02:00]} 20. Bxb7 {[%clk 0:01:45]}  Qxb7 {[%clk 0:02:01]} 21. Rc1 {[%clk 0:01:46]}  h6 {[%clk 0:02:01]} 22. h3 {[%clk 0:01:41]} 1/2-1/2


[Site "https://www.chess.com"]

[Event "Titled Tuesday Blitz February 28 Early 2023"]
[White "Paravyan, David"]
[Black "Lazavik, Denis"]
[WhiteFideId "4194985"]
[BlackFideId "13515110"]
[WhiteElo "2577"]
[BlackElo "2560"]
[Result "0-1"]
[Round "07"]
[TimeControl "180+2"]
[Date "2023.02.28"]
[WhiteClock "0:00:02"]
[BlackClock "0:00:16"]

1. e4 {[%clk 0:03:00]}  e5 {[%clk 0:03:00]} 2. Nf3 {[%clk 0:03:01]}  Nc6 {[%clk 0:03:01]} 3. Bb5 {[%clk 0:03:01]}  Nf6 {[%clk 0:03:00]} 4. O-O {[%clk 0:03:02]}  Nxe4 {[%clk 0:03:01]} 5. Re1 {[%clk 0:03:03]}  Nd6 {[%clk 0:03:01]} 6. Nxe5 {[%clk 0:03:03]}  Be7 {[%clk 0:03:01]} 7. Bf1 {[%clk 0:03:04]}  Nxe5 {[%clk 0:03:01]} 8. Rxe5 {[%clk 0:03:05]}  O-O {[%clk 0:03:01]} 9. Nc3 {[%clk 0:03:04]}  Bf6 {[%clk 0:02:42]} 10. Re1 {[%clk 0:03:01]}  Re8 {[%clk 0:02:42]} 11. Nd5 {[%clk 0:03:00]}  Rxe1 {[%clk 0:02:38]} 12. Qxe1 {[%clk 0:03:01]}  b6 {[%clk 0:02:38]} 13. d3 {[%clk 0:02:59]}  Bb7 {[%clk 0:02:38]} 14. Nxf6+ {[%clk 0:03:00]}  Qxf6 {[%clk 0:02:39]} 15. Qb4 {[%clk 0:03:00]}  c5 {[%clk 0:02:38]} 16. Qf4 {[%clk 0:03:00]}  Qxf4 {[%clk 0:02:37]} 17. Bxf4 {[%clk 0:03:01]}  Nf5 {[%clk 0:02:37]} 18. Re1 {[%clk 0:02:58]}  f6 {[%clk 0:02:35]} 19. c3 {[%clk 0:02:54]}  Kf7 {[%clk 0:02:31]} 20. f3 {[%clk 0:02:51]}  g5 {[%clk 0:02:31]} 21. Bd2 {[%clk 0:02:46]}  h5 {[%clk 0:02:30]} 22. Kf2 {[%clk 0:02:46]}  h4 {[%clk 0:02:29]} 23. Be2 {[%clk 0:02:41]}  Bd5 {[%clk 0:02:28]} 24. a3 {[%clk 0:02:24]}  Rg8 {[%clk 0:02:26]} 25. Bd1 {[%clk 0:02:22]}  Be6 {[%clk 0:02:22]} 26. Bc2 {[%clk 0:01:52]}  Ne7 {[%clk 0:02:17]} 27. b4 {[%clk 0:01:14]}  Rc8 {[%clk 0:02:11]} 28. b5 {[%clk 0:01:13]}  a5 {[%clk 0:01:51]} 29. bxa6 {[%clk 0:00:51]}  Ra8 {[%clk 0:01:50]} 30. Rb1 {[%clk 0:00:52]}  Rxa6 {[%clk 0:01:50]} 31. a4 {[%clk 0:00:44]}  d6 {[%clk 0:01:47]} 32. f4 {[%clk 0:00:38]}  g4 {[%clk 0:01:46]} 33. c4 {[%clk 0:00:34]}  Nf5 {[%clk 0:01:34]} 34. Bc3 {[%clk 0:00:32]}  Bd7 {[%clk 0:01:34]} 35. Ra1 {[%clk 0:00:31]}  Bc6 {[%clk 0:01:31]} 36. g3 {[%clk 0:00:28]}  hxg3+ {[%clk 0:01:29]} 37. hxg3 {[%clk 0:00:29]}  Ra8 {[%clk 0:01:29]} 38. Bd1 {[%clk 0:00:13]}  Rh8 {[%clk 0:01:27]} 39. Bxg4 {[%clk 0:00:13]}  Rh2+ {[%clk 0:01:27]} 40. Ke1 {[%clk 0:00:11]}  Ne3 {[%clk 0:01:03]} 41. Bd1 {[%clk 0:00:10]}  Bd7 {[%clk 0:00:54]} 42. a5 {[%clk 0:00:07]}  bxa5 {[%clk 0:00:53]} 43. Bxa5 {[%clk 0:00:05]}  Bg4 {[%clk 0:00:52]} 44. Bxg4 {[%clk 0:00:01]}  Nc2+ {[%clk 0:00:46]} 45. Kf1 {[%clk 0:00:02]}  Nxa1 {[%clk 0:00:47]} 46. Bf3 {[%clk 0:00:01]}  Nc2 {[%clk 0:00:45]} 47. Bd8 {[%clk 0:00:01]}  Ne3+ {[%clk 0:00:42]} 48. Ke1 {[%clk 0:00:01]}  Nf5 {[%clk 0:00:39]} 49. Bd5+ {[%clk 0:00:01]}  Kg7 {[%clk 0:00:39]} 50. g4 {[%clk 0:00:01]}  Ne3 {[%clk 0:00:38]} 51. Bf3 {[%clk 0:00:01]}  Kf7 {[%clk 0:00:34]} 52. g5 {[%clk 0:00:02]}  fxg5 {[%clk 0:00:29]} 53. Bxg5 {[%clk 0:00:03]}  Ke6 {[%clk 0:00:29]} 54. Be4 {[%clk 0:00:03]}  Ra2 {[%clk 0:00:22]} 55. Bh6 {[%clk 0:00:04]}  Nf5 {[%clk 0:00:08]} 56. Bg5 {[%clk 0:00:02]}  Nd4 {[%clk 0:00:09]} 57. Kf1 {[%clk 0:00:02]}  Rc2 {[%clk 0:00:08]} 58. Bh6 {[%clk 0:00:02]}  Nf5 {[%clk 0:00:08]} 59. Bf8 {[%clk 0:00:01]}  Ng3+ {[%clk 0:00:08]} 60. Kg1 {[%clk 0:00:01]}  Nxe4 {[%clk 0:00:09]} 61. dxe4 {[%clk 0:00:02]}  Rxc4 {[%clk 0:00:09]} 62. f5+ {[%clk 0:00:02]}  Kd7 {[%clk 0:00:10]} 63. e5 {[%clk 0:00:01]}  dxe5 {[%clk 0:00:10]} 64. f6 {[%clk 0:00:02]}  Rf4 {[%clk 0:00:10]} 65. Bxc5 {[%clk 0:00:01]}  Rxf6 {[%clk 0:00:11]} 66. Kg2 {[%clk 0:00:02]}  Rf5 {[%clk 0:00:12]} 67. Kg3 {[%clk 0:00:02]}  Ke6 {[%clk 0:00:12]} 68. Kg4 {[%clk 0:00:02]}  Rf4+ {[%clk 0:00:13]} 69. Kg3 {[%clk 0:00:02]}  Kf5 {[%clk 0:00:14]} 70. Ba7 {[%clk 0:00:03]}  Ra4 {[%clk 0:00:14]} 71. Bb6 {[%clk 0:00:03]}  Ra3+ {[%clk 0:00:15]} 72. Kf2 {[%clk 0:00:03]}  Kf4 {[%clk 0:00:15]} 73. Ke2 {[%clk 0:00:02]}  Ra2+ {[%clk 0:00:16]} 74. Ke1 {[%clk 0:00:02]}  Kf3 {[%clk 0:00:16]} 0-1


[Site "https://www.chess.com"]